bitfinex/quotes_ETHUSD_20241120
["timestamp","ask_amount","ask_price","bid_price","bid_amount"]
[1732069904337,1.022235,3096.8,3096.0,0.01]
[1732069904484,3.0,3096.7,3096.0,0.01]
[1732069904669,3.0,3096.7,3096.1,0.01]
[1732069904670,3.0008,3096.7,3096.1,0.01]
[1732069904872,0.7252175,3096.6,3096.1,0.01]
[1732069905393,0.0008,3096.7,3096.1,0.01]
[1732069906676,0.0008,3096.7,3096.3,0.01]
[1732069906838,3.0008,3097.1,3096.3,0.01]
[1732069907045,0.622954,3097.0,3096.3,0.01]
[1732069907469,0.0008,3097.1,3096.3,0.01]
[1732069907763,0.0008,3097.1,3096.4,0.01]
[1732069908572,3.22971,3097.1,3096.4,0.01]
[1732069909109,3.0,3096.8,3096.2,0.7992]
[1732069909309,3.0008,3096.8,3096.2,0.7992]
[1732069909473,0.0008,3096.8,3096.4,0.01]
[1732069910227,0.322971,3097.0,3096.7,0.01]
[1732069910507,0.0008,3097.2,3096.7,0.01]
[1732069911151,3.7643,3097.3,3096.7,0.01]
[1732069911275,0.699362,3097.2,3096.8,0.7992]
[1732069911699,3.0008,3097.4,3096.8,0.7992]
[1732069914510,3.0,3097.2,3096.8,0.7992]
[1732069914921,6.22874,3097.2,3096.7,0.01]
[1732069915334,3.22951,3097.3,3096.6,0.7992]
[1732069915335,3.0,3097.0,3096.6,0.7992]
[1732069915487,0.622884,3096.9,3096.6,0.7992]
[1732069915913,0.623684,3096.9,3096.6,0.7492]
[1732069917124,0.622884,3096.9,3096.6,0.7492]
[1732069917624,0.623684,3096.9,3096.6,0.7592]
[1732069917820,3.7643,3097.0,3096.4,0.01]
[1732069918041,3.7651,3097.0,3096.4,0.01]
[1732069918186,0.699399,3096.9,3096.4,0.01]
[1732069918705,0.700199,3096.9,3096.4,0.01]
[1732069918905,0.700199,3096.9,3096.4,0.8092]
[1732069919524,0.699399,3096.9,3096.4,0.8092]
[1732069919714,0.700199,3096.9,3096.4,0.8092]
[1732069919910,0.0008,3096.9,3096.4,0.8092]
[1732069920146,3.77884,3097.1,3096.4,0.8092]
[1732069920306,3.0,3097.0,3096.4,0.8092]
[1732069920635,0.677964,3096.9,3096.4,0.8092]
[1732069921002,0.678764,3096.9,3096.4,0.8092]
[1732069921330,0.677964,3096.9,3096.4,0.8092]
[1732069921832,0.0008,3096.9,3096.4,0.8092]
[1732069921997,3.22914,3096.8,3096.4,0.7992]
[1732069922357,3.22914,3096.8,3096.1,0.01]
[1732069922358,3.0,3096.7,3096.2,0.01]
[1732069922533,3.322914,3096.7,3096.2,0.01]
[1732069923616,3.0,3096.6,3096.2,0.01]
[1732069924209,3.00438783,3096.6,3096.2,0.01]
[1732069924720,3.00518783,3096.6,3096.2,0.01]
[1732069924894,0.33281018,3096.5,3096.2,0.01]
[1732069925100,0.00438783,3096.6,3096.2,0.01]
[1732069925532,3.22956,3096.4,3095.9,0.01]
[1732069925733,3.0,3096.3,3095.9,0.01]
[1732069925931,0.623036,3096.2,3095.9,0.01]
[1732069926230,0.623036,3096.2,3096.0,0.01]
[1732069926499,0.00438783,3096.6,3096.2,0.7722]
[1732069926920,0.00438783,3096.6,3096.3,0.02]
[1732069928130,0.00438783,3096.6,3096.5,0.01]
[1732069931250,0.00438783,3096.6,3096.5,0.02]
[1732069931462,0.00438783,3096.6,3096.5,0.80489494]
[1732069931905,0.00438783,3096.6,3096.5,1.16319225]
[1732069932549,0.00438783,3096.6,3096.5,0.80489494]
[1732069934212,0.00438783,3096.6,3096.5,1.16319225]
[1732069934900,0.00438783,3096.6,3096.5,0.80489494]
[1732069935004,0.00438783,3096.6,3096.5,1.16319225]
[1732069935205,0.00438783,3096.6,3096.5,0.80489494]
[1732069938548,0.00438783,3096.6,3096.5,0.79489494]
[1732069939013,0.00438783,3096.6,3096.5,0.80489494]
[1732069939210,3.0,3097.4,3096.7,0.01]
[1732069939451,3.0,3097.4,3096.9,0.01]
[1732069939452,0.703294,3097.3,3096.9,0.01]
[1732069939650,0.704094,3097.3,3096.9,0.01]
[1732069939863,0.3704094,3097.2,3096.9,0.01]
[1732069940352,0.8045,3097.5,3096.9,0.01]
[1732069940659,0.8045,3097.5,3097.0,0.01]
[1732069943162,0.8045,3097.5,3096.9,0.01]
[1732069943163,6.22858,3097.4,3096.9,0.01]
[1732069943345,6.22938,3097.4,3096.9,0.01]
[1732069943543,1.026237,3097.3,3096.6,0.01]
[1732069943744,0.8045,3097.2,3096.4,0.01]
[1732069944061,3.0,3096.9,3096.4,0.01]
[1732069944227,0.622893,3096.8,3096.4,0.01]
[1732069944437,3.0,3096.8,3096.4,0.02]
[1732069944630,3.0,3096.8,3096.2,0.7664]
[1732069944631,0.8045,3096.8,3096.2,0.7664]
[1732069944833,0.8045,3096.8,3096.4,0.01]
[1732069945051,0.38053,3096.7,3096.4,0.01]
[1732069945251,0.38133,3096.7,3096.2,0.01]
[1732069945474,0.38133,3096.7,3096.1,0.01]
[1732069945475,0.38133,3096.7,3096.4,0.01]
[1732069946074,0.38133,3096.7,3096.4,0.02]
[1732069946253,0.0008,3096.7,3096.4,0.02]
[1732069946577,0.0008,3096.7,3096.4,0.01]
[1732069946745,0.0008,3096.7,3096.4,0.02]
[1732069946945,0.0008,3096.7,3096.4,0.01]
[1732069947128,3.0008,3096.7,3096.4,0.01]
[1732069947331,0.703447,3096.6,3096.4,0.01]
[1732069948070,0.703447,3096.6,3096.5,0.01]
[1732069948559,0.703447,3096.6,3096.0,0.7811]
[1732069949240,3.22953,3096.5,3096.0,0.01]
[1732069949466,3.22977,3096.2,3095.6,0.01]
[1732069949732,0.7983,3096.3,3095.6,0.01]
[1732069949733,3.22994,3096.1,3095.6,0.01]
[1732069950335,3.0,3096.0,3095.6,0.01]
[1732069950660,0.0008,3096.0,3095.8,0.01]
[1732069950892,3.0,3096.2,3095.8,0.01]
[1732069951211,3.23018,3095.8,3095.1,0.01]
[1732069951295,3.0,3095.9,3095.5,0.01]
[1732069951561,1.136363,3096.0,3095.5,0.01]
[1732069951735,3.0,3095.9,3095.5,0.01]
[1732069951936,3.23018,3095.8,3095.5,0.01]
[1732069952178,3.623018,3095.7,3095.5,0.01]
[1732069952337,0.0008,3095.8,3095.5,0.01]
[1732069952539,3.0,3096.3,3095.7,0.01]
[1732069952841,8.76,3096.8,3095.9,0.01]
[1732069952842,3.7983,3096.7,3095.9,0.01]
[1732069953084,0.322938,3096.5,3096.2,0.01]
[1732069953268,3.552478,3096.5,3095.8,0.01]
[1732069953469,0.3552478,3096.4,3096.0,0.01]
[1732069953631,0.322938,3096.5,3095.9,0.01]
[1732069953961,3.223365,3096.6,3095.9,0.01]
[1732069954272,3.0,3096.5,3096.0,0.01]
[1732069954579,3.7021665,3096.5,3095.8,0.01]
[1732069954790,3.0,3096.3,3095.8,0.01]
[1732069955092,3.0008,3096.3,3095.8,0.01]
[1732069955285,3.0,3096.3,3095.8,0.01]
[1732069955442,3.69325165,3096.3,3095.8,0.01]
[1732069956141,0.7029665,3096.5,3095.7,0.01]
[1732069956142,3.7021665,3096.5,3096.0,0.01]
[1732069956425,3.0,3096.5,3096.0,0.01]
[1732069956628,3.702767,3096.5,3096.0,0.01]
[1732069956810,3.0,3096.3,3096.0,0.01]
[1732069957234,3.0,3096.5,3096.0,0.02]
[1732069957413,0.0008,3096.6,3096.0,0.02]
[1732069957631,0.0008,3096.6,3096.2,0.01]
[1732069958198,3.0008,3096.6,3096.0,0.01]
[1732069958517,7.02788,3096.4,3096.0,0.01]
[1732069958725,0.7991,3096.4,3096.0,0.01]
[1732069959028,3.7991,3096.4,3096.0,0.01]
[1732069959451,3.22984,3096.2,3095.7,0.7611]
[1732069959726,0.8165,3096.0,3095.4,0.8254]
[1732069960035,3.23019,3095.8,3095.4,0.01]
[1732069960330,4.258744,3095.8,3095.4,0.01]
[1732069960689,4.258744,3095.8,3095.2,0.01]
[1732069961113,3.0,3095.7,3095.1,0.8254]
[1732069961373,4.258744,3095.8,3095.0,0.01]
[1732069961374,3.0,3095.5,3095.0,0.01]
[1732069961517,3.0,3095.3,3094.8,0.01]
[1732069961729,3.0008,3095.3,3094.8,0.01]
[1732069962391,3.0008,3095.3,3094.7,0.01]
[1732069962506,3.51182,3095.3,3094.7,0.01]
[1732069962708,3.51182,3095.3,3094.8,0.01]
[1732069963305,3.51182,3095.3,3094.8,0.02]
[1732069963519,6.74253,3095.3,3094.8,0.02]
[1732069963986,0.51182,3095.3,3094.8,0.02]
[1732069964186,0.0008,3095.3,3094.8,0.02]
[1732069965353,3.0008,3095.3,3094.8,0.01]
[1732069965675,3.0008,3095.3,3094.8,0.02]
[1732069965847,0.0008,3095.3,3094.8,0.02]
[1732069966250,3.0,3095.8,3095.2,0.02]
[1732069966448,3.0,3095.6,3095.2,0.01]
[1732069966784,3.0,3095.6,3095.0,0.01]
[1732069966785,0.8165,3095.5,3095.0,0.01]
[1732069966935,4.347,3095.5,3094.8,0.01]
[1732069967144,4.347,3095.5,3095.0,0.01]
[1732069967145,3.0,3095.4,3095.0,0.01]
[1732069967337,3.0008,3095.4,3095.0,0.01]
[1732069967600,0.73558,3095.4,3095.0,0.01]
[1732069968493,0.0008,3095.4,3095.0,0.01]
[1732069968712,0.0008,3095.4,3095.1,0.01]
[1732069969881,0.8165,3095.1,3094.2,0.01]
[1732069970321,3.0,3094.3,3094.0,0.01]
[1732069970390,0.0008,3094.3,3094.0,0.01]
[1732069970835,0.0008,3094.3,3093.8,0.02]
[1732069971006,3.0008,3094.3,3093.8,0.02]
[1732069971158,3.0008,3094.3,3093.6,0.8154]
[1732069971159,6.855834,3094.3,3093.6,0.8354]
[1732069971537,3.624044,3094.3,3094.0,0.01]
[1732069971648,3.9174384,3094.2,3093.7,0.01]
[1732069971855,0.6855684,3094.2,3093.7,0.01]
[1732069972053,0.6855684,3094.2,3093.6,0.8254]
[1732069972291,0.45117684,3094.1,3093.6,0.01]
[1732069972586,0.0008,3094.1,3093.6,0.01]
[1732069972797,3.0,3094.0,3093.6,0.01]
[1732069972961,0.8173,3094.1,3093.6,0.01]
[1732069973347,0.8165,3094.1,3093.6,0.01]
[1732069973548,0.8165,3094.1,3093.3,0.9657668]
[1732069973549,3.0,3093.9,3093.4,0.01]
[1732069973796,3.0008,3093.9,3093.4,0.01]
[1732069974697,0.0008,3093.9,3093.6,0.01]
[1732069975324,0.743892,3093.9,3093.6,0.01]
[1732069975817,0.8262,3094.3,3093.6,0.01]
[1732069975991,3.8262,3094.3,3093.6,0.01]
[1732069976815,0.8262,3094.3,3093.6,0.01]
[1732069977023,0.8262,3094.3,3093.7,0.8154]
[1732069977220,0.16427,3094.2,3093.7,0.8154]
[1732069977452,0.0008,3094.3,3093.8,0.01]
[1732069977778,0.0008,3094.3,3094.0,0.01]
[1732069978019,0.0008,3094.3,3093.8,0.01]
[1732069978221,0.0008,3094.3,3094.0,0.02]
[1732069979589,0.0008,3094.3,3094.2,0.01]
[1732069979787,3.0008,3094.8,3094.2,0.8254]
[1732069979974,3.0008,3094.8,3094.2,0.8354]
[1732069979975,0.151167,3094.8,3094.2,0.8354]
[1732069980679,0.151167,3094.8,3093.3,0.1503668]
[1732069980680,0.151167,3094.8,3094.7,0.01]
[1732069980890,0.0008,3095.3,3094.7,0.01]
[1732069981120,0.0008,3095.3,3094.8,0.01]
[1732069981121,0.8154,3095.0,3094.8,0.01]
[1732069981313,0.8162,3095.0,3094.8,0.01]
[1732069981477,4.04691,3095.6,3094.8,0.01]
[1732069981478,0.0008,3095.5,3094.9,0.01]
[1732069981676,0.0008,3095.5,3095.0,0.8154]
[1732069981912,0.0008,3095.5,3095.2,0.01]
[1732069982243,0.0008,3095.5,3095.3,0.01]
[1732069982428,3.22945,3096.5,3095.2,0.01]
[1732069982429,0.0008,3096.1,3095.5,0.01]
[1732069982585,0.8254,3095.8,3095.5,0.01]
[1732069983137,4.461271,3095.8,3095.0,0.8354]
[1732069983286,3.0,3095.7,3095.0,0.8354]
[1732069983479,3.0008,3095.7,3095.0,0.8354]
[1732069983674,0.55,3095.5,3095.0,0.8354]
[1732069984117,0.55,3095.5,3095.0,0.8254]
[1732069984318,3.55,3095.5,3095.0,0.8254]
[1732069984535,3.55,3095.5,3095.0,0.8354]
[1732069984536,0.55,3095.5,3095.0,0.8354]
[1732069984830,0.51127071,3095.4,3095.0,0.8354]
[1732069985035,0.51127071,3095.4,3095.0,0.8254]
[1732069985233,0.51127071,3095.4,3095.0,0.8354]
[1732069985594,0.55,3095.6,3095.0,0.8354]
[1732069985813,0.5508,3095.7,3095.0,0.8354]
[1732069986226,0.0008,3095.7,3095.4,0.01]
[1732069987160,0.0008,3095.7,3095.5,0.01]
[1732069987717,0.0008,3095.7,3095.5,0.8254]
[1732069988017,0.00438783,3095.9,3095.6,0.01]
[1732069988422,0.00438783,3095.9,3095.8,0.01]
[1732069988776,0.00438783,3095.9,3095.8,0.02]
[1732069988830,0.00438783,3095.9,3095.8,0.8354]
[1732069991501,0.00438783,3095.9,3095.8,0.8554]
[1732069994906,0.00438783,3095.9,3095.8,0.8254]
[1732069995296,0.00438783,3095.9,3095.8,0.8354]
[1732069997483,0.00438783,3095.9,3095.8,0.8254]
[1732069997850,0.00438783,3095.9,3095.8,0.8354]
[1732069998425,0.00438783,3095.9,3095.8,0.8254]
[1732069998604,0.00438783,3095.9,3095.8,0.8354]
[1732069999120,0.00438783,3095.9,3095.8,0.02]
[1732069999280,0.00438783,3095.9,3094.5,0.35510405]
[1732069999281,0.00438783,3095.9,3095.4,0.02]
[1732069999621,0.00438783,3095.9,3095.4,0.01]
[1732069999872,0.35543878,3095.8,3095.2,0.01]
[1732070000069,0.55,3095.7,3095.5,0.01]
[1732070000312,0.00438783,3095.9,3095.5,0.01]
[1732070000581,3.00518783,3095.9,3095.0,0.01]
[1732070000674,0.55,3095.7,3095.2,0.01]
[1732070000991,0.55,3095.5,3094.9,0.01]
[1732070001323,0.55,3095.3,3094.9,0.01]
[1732070001694,0.55,3095.3,3095.0,0.01]
[1732070002086,0.55,3095.3,3095.2,0.01]
[1732070003391,0.0008,3095.6,3095.3,0.01]
[1732070003807,0.0008,3095.6,3094.9,0.01]
[1732070004008,0.55,3095.7,3095.2,0.01]
[1732070004218,0.55,3095.7,3095.0,0.01]
[1732070004489,0.55,3095.7,3095.2,0.01]
[1732070004729,1.30836678,3095.7,3095.0,0.01]
[1732070004917,3.55,3095.5,3095.0,0.01]
[1732070005120,6.7813,3095.5,3094.8,0.01]
[1732070005444,0.55,3095.3,3094.7,0.01]
[1732070005738,0.5508,3095.3,3094.7,0.01]
[1732070006347,0.55,3095.1,3094.4,0.01]
[1732070006647,0.55,3094.7,3093.8,0.02]
[1732070006884,3.5508,3094.7,3094.0,0.01]
[1732070007147,0.5508,3094.7,3094.0,0.01]
[1732070007296,0.55,3094.5,3094.0,0.01]
[1732070007639,0.55,3094.3,3094.0,0.01]
[1732070007866,0.7608,3094.2,3094.0,0.01]
[1732070008404,0.7616,3094.2,3093.8,0.02]
[1732070008610,12.32779991,3095.3,3093.3,0.9311668]
[1732070008611,0.55,3094.4,3094.1,0.01]
[1732070008824,0.55,3094.4,3094.0,0.01]
[1732070009456,0.55,3094.4,3094.1,0.01]
[1732070011057,0.5508,3094.4,3094.1,0.01]
[1732070012158,0.0008,3094.4,3094.3,0.02]
[1732070013615,0.7608,3095.1,3094.3,0.02]
[1732070013822,0.55,3095.0,3094.3,0.02]
[1732070014011,0.7608,3095.1,3094.6,0.01]
[1732070014522,0.7608,3095.1,3094.7,0.01]
[1732070014718,0.7608,3095.1,3094.6,0.01]
[1732070014927,0.7608,3095.1,3094.3,0.02]
[1732070015127,0.7608,3095.1,3094.6,0.01]
[1732070015330,0.55,3095.0,3094.6,0.01]
[1732070015528,0.5508,3095.0,3094.6,0.02]
[1732070015825,0.5508,3095.0,3094.2,0.7908]
[1732070015826,0.5508,3095.0,3094.3,0.01]
[1732070016023,0.5306,3095.0,3094.3,0.01]
[1732070016302,0.42914,3094.9,3094.4,0.01]
[1732070016809,0.129165,3094.8,3094.4,0.01]
[1732070017154,0.129965,3094.8,3094.4,0.01]
[1732070017705,0.129165,3094.8,3094.5,0.7908]
[1732070018250,0.55,3094.7,3094.5,0.7908]
[1732070019050,0.55,3094.7,3094.4,0.01]
[1732070019968,0.5508,3094.7,3094.2,0.01]
[1732070020248,0.55,3094.5,3094.2,0.01]
[1732070020548,0.5508,3094.5,3094.2,0.01]
[1732070021655,0.5508,3094.5,3094.0,0.01]
[1732070021870,0.5508,3094.5,3093.9,0.8096]
[1732070022046,0.5508,3094.5,3093.9,0.01]
[1732070022361,1.323,3094.3,3094.0,0.01]
[1732070023022,1.3238,3094.3,3094.0,0.01]
[1732070025959,0.0008,3094.3,3094.0,0.01]
[1732070026776,0.55,3094.5,3094.0,0.01]
[1732070027094,0.98124,3094.5,3094.0,0.01]
[1732070027451,0.55,3094.5,3094.1,0.01]
[1732070027652,0.55,3094.5,3094.0,0.01]
[1732070028104,0.5508,3094.5,3094.0,0.01]
[1732070028396,0.55,3094.5,3094.2,0.01]
[1732070029090,0.0008,3094.6,3094.2,0.01]
[1732070029281,0.55,3094.5,3094.2,0.01]
[1732070030238,0.39999002,3094.6,3094.2,0.01]
[1732070030239,0.0008,3094.6,3094.2,0.01]
[1732070030557,0.5508,3094.7,3094.5,0.01]
[1732070030753,0.55,3094.7,3094.5,0.01]
[1732070030990,0.5508,3094.7,3094.5,0.01]
[1732070031202,0.55,3094.7,3094.5,0.01]
[1732070032239,0.129165,3094.8,3094.5,0.01]
[1732070032240,0.129165,3094.8,3094.6,0.01]
[1732070032941,0.129165,3094.8,3094.7,0.01]
[1732070033499,0.679165,3094.8,3094.7,0.01]
[1732070034039,0.679965,3094.8,3094.7,0.01]
[1732070034288,0.679165,3094.8,3094.7,0.01]
[1732070035435,3.23157,3094.5,3093.8,0.02]
[1732070035714,0.55,3094.3,3093.8,0.02]
[1732070035838,0.55,3094.3,3094.0,0.01]
[1732070036377,0.5508,3094.3,3094.0,0.01]
[1732070036523,0.0008,3094.3,3094.0,0.01]
[1732070036707,0.0008,3094.3,3094.1,0.01]
[1732070037097,0.0008,3094.3,3094.2,0.01]
[1732070037329,0.0008,3094.3,3093.7,0.8013]
[1732070037330,0.0008,3094.3,3093.8,0.02]
[1732070037544,0.55,3094.1,3093.8,0.02]
[1732070038403,0.5508,3094.1,3093.8,0.02]
[1732070039843,0.5508,3094.1,3094.0,0.01]
[1732070040955,0.0008,3094.1,3094.0,0.8213]
[1732070041101,0.0008,3094.6,3094.2,0.01]
[1732070041305,0.0008,3094.8,3094.2,0.01]
[1732070042452,0.55,3094.8,3094.4,0.01]
[1732070042601,0.55,3094.6,3094.2,0.01]
[1732070042818,0.55,3094.4,3094.0,0.01]
[1732070043571,0.5508,3094.4,3093.8,0.01]
[1732070043791,0.55,3094.2,3093.8,0.01]
[1732070044058,0.55,3094.2,3093.8,0.00561217]
[1732070044210,0.5508,3094.2,3093.8,0.00561217]
[1732070044415,0.55,3094.2,3094.0,0.01]
[1732070044790,0.55,3094.4,3094.0,0.01]
[1732070044951,0.0008,3094.2,3094.0,0.01]
[1732070045152,0.5508,3094.4,3093.8,0.01561217]
[1732070045320,0.5508,3094.2,3093.8,0.01561217]
[1732070045725,0.43132,3094.3,3093.8,0.01561217]
[1732070045726,0.43132,3094.3,3094.0,0.01]
[1732070046023,0.7624,3094.5,3093.8,0.00561217]
[1732070046024,0.0008,3094.2,3093.8,0.01]
[1732070046333,0.0008,3094.3,3093.8,0.01]
[1732070046537,0.37712,3094.3,3093.8,0.01]
[1732070046733,3.37712,3094.3,3093.6,0.01]
[1732070046965,0.55,3094.1,3093.8,0.01]
[1732070047463,0.5508,3094.1,3093.6,0.01]
[1732070047672,3.5508,3094.1,3093.4,0.01561217]
[1732070047850,0.55,3093.9,3093.4,0.01561217]
[1732070048158,0.5508,3093.9,3093.6,0.01]
[1732070049167,0.5508,3093.9,3093.4,0.01]
[1732070050087,0.5508,3093.9,3093.4,0.01561217]
[1732070050266,0.5508,3093.9,3093.4,0.01]
[1732070050630,0.5508,3093.9,3093.4,0.01561217]
[1732070051167,0.9820254,3093.9,3093.4,0.01561217]
[1732070051278,0.0008,3094.3,3093.7,0.01]
[1732070051584,3.7833,3094.4,3093.9,0.01]
[1732070051780,1.25441,3094.3,3093.9,0.01]
[1732070052579,1.25441,3094.3,3093.6,0.00561217]
[1732070052580,0.0008,3094.4,3094.0,0.01]
[1732070052932,0.0008,3094.4,3094.2,0.01]
[1732070053745,3.0008,3094.4,3094.3,0.00561217]
[1732070054160,0.0008,3094.4,3094.3,0.00561217]
[1732070054566,0.0008,3094.4,3094.2,0.01]
[1732070056132,0.55,3094.8,3094.4,0.00561217]
[1732070056602,0.55,3094.8,3094.5,0.01]
[1732070057078,0.55,3095.1,3094.5,0.01]
[1732070057284,3.94010017,3095.1,3094.5,0.01]
[1732070057582,0.55,3095.1,3094.5,0.01]
[1732070057784,0.7833,3095.0,3094.1,0.80271217]
[1732070057958,0.7833,3095.0,3094.1,0.7971]
[1732070057959,0.55,3094.9,3094.1,0.7971]
[1732070058170,0.55,3094.9,3094.2,0.01]
[1732070058561,0.55,3094.9,3094.2,0.01561217]
[1732070059060,0.55,3094.9,3094.1,0.80271217]
[1732070059256,0.55,3094.9,3094.4,0.01561217]
[1732070059499,0.0008,3095.0,3094.6,0.00561217]
[1732070059798,0.0008,3095.0,3094.9,0.00561217]
[1732070060106,0.88265319,3095.6,3094.9,0.00561217]
[1732070060309,0.16797532,3095.5,3094.9,0.00561217]
[1732070061104,0.55,3095.4,3094.9,0.00561217]
[1732070061399,0.16797532,3095.5,3095.2,0.80271217]
[1732070061607,0.0008,3095.7,3095.2,0.80271217]
[1732070063404,0.0008,3095.7,3095.2,0.7971]
[1732070063575,0.0008,3095.7,3095.2,0.80271217]
[1732070063844,0.0008,3095.7,3095.2,0.7971]
[1732070063968,0.0008,3095.7,3095.2,0.80271217]
[1732070064267,0.0008,3095.7,3095.5,0.00561217]
[1732070065418,0.0008,3095.7,3095.3,0.00561217]
[1732070065707,0.0008,3095.7,3095.5,0.00561217]
[1732070066814,0.55,3095.9,3095.5,0.00561217]
[1732070067117,0.55,3095.7,3095.5,0.00561217]
[1732070068535,0.0008,3095.9,3095.8,0.01561217]
[1732070068676,0.8141,3096.6,3095.6,0.7977]
[1732070068677,0.0008,3096.5,3096.2,0.01]
[1732070068874,0.0008,3096.5,3095.8,0.00561217]
[1732070069233,0.8141,3096.4,3095.4,0.01]
[1732070069498,0.8141,3096.2,3095.4,0.01]
[1732070069798,0.8149,3096.2,3095.4,0.01]
[1732070069984,0.8149,3096.2,3095.3,0.80331217]
[1732070069985,0.55,3096.1,3095.3,0.7977]
[1732070070209,0.55,3095.9,3095.2,0.01561217]
[1732070070396,0.55,3095.9,3095.2,0.01]
[1732070070611,0.55,3095.7,3095.0,0.01]
[1732070070918,0.55,3095.5,3095.0,0.01]
[1732070071102,0.5508,3095.5,3095.0,0.01]
[1732070071277,0.0008,3095.5,3095.0,0.01]
[1732070072276,0.5508,3095.7,3095.0,0.01]
[1732070072588,0.55,3095.7,3095.1,0.00561217]
[1732070072792,0.8149,3095.8,3095.1,0.00561217]
[1732070073087,0.8149,3095.8,3095.4,0.00561217]
[1732070073088,0.0008,3095.8,3095.4,0.00561217]
[1732070074135,0.5508,3095.8,3095.4,0.00561217]
[1732070075147,0.0008,3095.8,3095.4,0.00561217]
[1732070075435,0.0008,3095.8,3095.3,0.01]
[1732070075645,0.0008,3095.8,3095.4,0.01]
[1732070075939,0.0008,3095.8,3095.4,0.01561217]
[1732070076398,0.0008,3095.8,3095.7,0.7977]
[1732070077035,0.0008,3095.8,3095.7,0.8077]
[1732070077699,0.0008,3095.8,3095.7,0.01]
[1732070077907,0.0008,3096.1,3095.7,0.01]
[1732070078879,4.3641,3096.0,3095.4,0.01]
[1732070079004,0.55,3095.8,3095.4,0.01]
[1732070079731,0.5508,3095.9,3095.3,0.00561217]
[1732070080807,0.5508,3095.9,3095.5,0.01]
[1732070081329,0.5508,3095.9,3095.3,0.00561217]
[1732070082205,0.5508,3095.9,3095.5,0.01]
[1732070085746,0.5508,3095.9,3095.6,0.8177]
[1732070086031,0.0008,3095.9,3095.8,0.00561217]
[1732070086147,0.7662,3096.3,3095.6,0.8177]
[1732070086148,0.0008,3096.1,3095.6,0.8177]
[1732070086441,2.01882,3096.3,3095.6,0.8177]
[1732070086614,2.01962,3096.3,3095.8,0.00561217]
[1732070086960,3.501962,3096.2,3095.8,0.00561217]
[1732070087160,0.55,3096.2,3095.6,0.82331217]
[1732070087457,0.55,3096.2,3095.8,0.00561217]
[1732070087748,0.55,3096.4,3095.8,0.00561217]
[1732070088440,3.767,3096.5,3096.1,0.00561217]
[1732070088628,3.767,3096.5,3096.1,0.82331217]
[1732070088629,0.0008,3096.5,3096.1,0.82331217]
[1732070088826,3.0,3096.4,3096.1,0.82331217]
[1732070089191,9.91884277,3096.5,3096.1,0.82331217]
[1732070089483,1.15884277,3096.5,3096.1,0.82331217]
[1732070089770,0.55,3096.4,3096.1,0.82331217]
[1732070090211,0.5508,3096.5,3096.1,0.82331217]
[1732070090359,3.0,3096.4,3096.1,0.82331217]
[1732070090670,0.55,3096.3,3096.1,0.82331217]
[1732070090827,3.0,3096.4,3096.3,0.00561217]
[1732070091046,8.76,3096.7,3096.5,0.00561217]
[1732070091321,0.0008,3097.1,3096.7,0.00561217]
[1732070091436,8.76,3097.0,3096.7,0.00561217]
[1732070091636,0.87608,3096.9,3096.7,0.00561217]
[1732070092088,0.87688,3096.9,3096.7,0.00561217]
[1732070092738,0.55,3096.8,3096.4,0.8277]
[1732070092958,0.55,3096.8,3096.4,0.83331217]
[1732070093329,0.55,3096.6,3096.4,0.8277]
[1732070093430,0.55,3096.6,3096.4,0.83331217]
[1732070093923,0.55,3096.6,3096.4,0.8277]
[1732070094130,0.55,3096.6,3096.4,0.83331217]
[1732070095253,0.55,3096.6,3096.4,0.00561217]
[1732070095565,0.55,3096.6,3096.4,0.01561217]
[1732070096168,9.31,3096.6,3096.4,0.01561217]
[1732070096528,9.31,3096.5,3096.4,0.00561217]
[1732070096668,9.3108,3096.5,3096.4,0.01561217]
[1732070097418,9.3108,3096.5,3096.4,0.00561217]
[1732070097601,10.38368368,3096.5,3096.4,0.01561217]
[1732070098079,10.38368368,3096.5,3096.4,0.00561217]
[1732070098970,10.38288368,3096.5,3096.4,0.01561217]
[1732070099171,9.31,3096.5,3096.4,0.01561217]
[1732070100228,0.55,3096.5,3096.4,0.01561217]
[1732070100420,0.767,3097.1,3096.6,0.01561217]
[1732070100421,0.0008,3097.1,3096.6,0.01561217]
[1732070100707,0.0008,3097.1,3096.8,0.00561217]
[1732070100815,0.679066,3096.9,3096.8,0.01561217]
[1732070100991,0.679866,3096.9,3096.8,0.01561217]
[1732070101645,0.0008,3096.9,3096.8,0.01561217]
[1732070101991,0.8185,3097.3,3097.1,0.00561217]
[1732070102107,0.8177,3097.3,3097.1,0.00561217]
[1732070102294,0.8177,3097.3,3097.0,0.01]
[1732070102295,0.8185,3097.3,3097.0,0.01]
[1732070102831,0.8177,3097.3,3097.0,0.01]
[1732070103137,0.55,3097.2,3097.0,0.01]